bitfinex-derivatives/quotes_BTCF0:USTF0_20250429
["timestamp","ask_amount","ask_price","bid_price","bid_amount"]
[1745887976435,0.2834788,95074.0,95073.0,0.007869]
[1745887976634,0.2834788,95074.0,95073.0,0.20494398]
[1745887977143,0.2834788,95074.0,95073.0,0.1892808]
[1745887978143,0.6442788,95074.0,95073.0,0.1892808]
[1745887979750,0.1892848,95072.0,95071.0,0.1892838]
[1745887980046,0.1892848,95072.0,95071.0,0.1992838]
[1745887980246,0.2835848,95072.0,95071.0,0.1992838]
[1745887981540,0.2865848,95072.0,95071.0,0.1992838]
[1745887981737,0.2875848,95072.0,95071.0,0.1992838]
[1745887984640,0.2875848,95072.0,95071.0,0.20718441]
[1745887985344,0.2875848,95072.0,95071.0,0.22280112]
[1745887985548,0.2875848,95072.0,95071.0,0.20718441]
[1745887985852,0.2875848,95072.0,95071.0,0.22280425]
[1745887986243,0.2875848,95072.0,95071.0,0.34280425]
[1745887991342,0.1932848,95072.0,95071.0,0.34280425]
[1745887991549,0.004,95072.0,95071.0,0.43710425]
[1745887992257,0.001,95076.0,95075.0,0.1892768]
[1745887992461,0.0015,95080.0,95079.0,0.1892689]
[1745887992654,0.0015,95080.0,95079.0,0.34488874]
[1745887993352,0.0015,95080.0,95079.0,0.51250151]
[1745887993950,0.1907669,95080.0,95079.0,0.33937012]
[1745887994761,0.0015,95080.0,95079.0,0.52863902]
[1745887995262,0.3608,95086.0,95085.0,0.1892569]
[1745887995450,0.3608,95086.0,95085.0,0.3292569]
[1745887995959,0.3608,95086.0,95085.0,0.34539441]
[1745887996160,0.3608,95086.0,95085.0,0.55619441]
[1745887996460,0.3618,95086.0,95085.0,0.55619441]
[1745887996648,0.3618,95086.0,95085.0,0.5400569]
[1745887997559,0.5510549,95086.0,95085.0,0.5400569]
[1745887997955,0.5530549,95086.0,95085.0,0.3053]
[1745887998256,0.5530549,95086.0,95085.0,0.1853]
[1745887998559,0.5530549,95086.0,95085.0,0.0453]
[1745887998858,0.6490549,95086.0,95085.0,0.0453]
[1745887999957,0.1892768,95075.0,95074.0,0.21415966]
[1745888000153,0.5500768,95075.0,95074.0,0.31415966]
[1745888000847,0.5958768,95075.0,95074.0,0.31415966]
[1745888001052,0.5958768,95075.0,95074.0,0.31515966]
[1745888001247,0.6448768,95075.0,95074.0,0.36195966]
[1745888001455,0.6448768,95075.0,95074.0,0.1478]
[1745888001762,0.6448768,95075.0,95074.0,0.3370788]
[1745888002148,0.6448768,95075.0,95074.0,0.4570788]
[1745888003251,0.6448768,95075.0,95074.0,0.4560788]
[1745888003451,0.6448768,95075.0,95074.0,0.4570788]
[1745888007449,0.6448768,95075.0,95074.0,0.2678]
[1745888008249,0.6448768,95075.0,95074.0,0.1478]
[1745888009758,0.6448768,95075.0,95074.0,0.0478]
[1745888014165,0.6448768,95075.0,95074.0,0.1678]
[1745888016871,0.6448768,95075.0,95074.0,0.1778]
[1745888019871,0.6448768,95075.0,95074.0,0.1678]
[1745888027067,0.65525681,95075.0,95074.0,0.121]
[1745888027262,0.65525681,95075.0,95032.0,0.36237837]
[1745888027263,0.1892967,95065.0,95064.0,0.05218765]
[1745888027472,0.1893087,95059.0,95046.0,0.0493]
[1745888027677,0.5501087,95059.0,95058.0,0.18498856]
[1745888027867,0.6553087,95059.0,95058.0,0.15629226]
[1745888028068,0.6553087,95059.0,95058.0,0.12079586]
[1745888028272,0.8712087,95059.0,95058.0,0.12079586]
[1745888029471,0.9390887,95059.0,95058.0,0.12079586]
[1745888029871,1.0491075,95059.0,95045.0,0.00105213]
[1745888030072,0.5501226,95052.0,95051.0,0.27585847]
[1745888030472,0.6553306,95052.0,95051.0,0.27585847]
[1745888030873,0.1893346,95046.0,95045.0,0.00105213]
[1745888031084,0.5501346,95046.0,95045.0,0.00105213]
[1745888031271,0.6553466,95046.0,95045.0,0.00105213]
[1745888031673,0.7521466,95046.0,95045.0,0.00105213]
[1745888032384,0.7521466,95046.0,95045.0,0.00205213]
[1745888032885,0.7521466,95046.0,95045.0,0.00305213]
[1745888033771,0.7521466,95046.0,95045.0,0.0107626]
[1745888035280,0.76246367,95046.0,95045.0,0.0107626]
[1745888037376,1.17556367,95046.0,95045.0,0.0107626]
[1745888039082,1.07035167,95046.0,95045.0,0.0107626]
[1745888043288,0.9632346,95046.0,95045.0,0.3300992]
[1745888043481,0.9632346,95046.0,95045.0,0.2000992]
[1745888044080,0.9632346,95046.0,95045.0,0.3200992]
[1745888044493,0.9632346,95046.0,95045.0,0.3670992]
[1745888050486,1.3240346,95046.0,95045.0,0.3670992]
[1745888050883,1.3240346,95046.0,95045.0,0.1777626]
[1745888051285,1.4230346,95046.0,95045.0,0.1777626]
[1745888052780,1.4230346,95046.0,95045.0,0.1307626]
[1745888053284,1.4230346,95046.0,95045.0,0.0107626]
[1745888055289,1.3240346,95046.0,95045.0,0.0107626]
[1745888055592,1.3923946,95046.0,95045.0,0.0107626]
[1745888056096,1.3923946,95046.0,95045.0,0.1307626]
[1745888057084,1.4419946,95046.0,95045.0,0.1307626]
[1745888066892,0.7203946,95046.0,95045.0,0.1307626]
[1745888067096,1.3923946,95046.0,95045.0,0.1307626]
[1745888068496,1.3923946,95046.0,95045.0,0.1777626]
[1745888068797,1.4384946,95046.0,95045.0,0.1777626]
[1745888076598,1.3923946,95046.0,95045.0,0.1777626]
[1745888078003,1.4398946,95046.0,95045.0,0.1777626]
[1745888078406,1.4890946,95046.0,95045.0,0.1777626]
[1745888080890,1.3240346,95046.0,95045.0,0.3670992]
[1745888081093,0.4131,95046.0,95045.0,0.7223112]
[1745888081293,0.5501067,95060.0,95059.0,0.1893087]
[1745888081504,0.3608,95060.0,95059.0,0.3193087]
[1745888081802,0.5501067,95060.0,95059.0,0.3193087]
[1745888082194,0.5501067,95060.0,95059.0,0.4393087]
[1745888082398,0.5501067,95060.0,95059.0,0.5355087]
[1745888082594,0.5531067,95060.0,95059.0,0.3462]
[1745888082801,0.5531067,95060.0,95059.0,0.2162]
[1745888083308,0.5551067,95060.0,95059.0,0.2162]
[1745888086007,0.6062067,95060.0,95059.0,0.1678]
[1745888092812,0.5551067,95060.0,95059.0,0.1678]
[1745888098300,0.5551067,95060.0,95059.0,0.067224]
[1745888098505,0.6060067,95060.0,95059.0,0.067224]
[1745888102313,0.6543067,95060.0,95059.0,0.067224]
[1745888106210,1.0674067,95060.0,95059.0,1e-07]
[1745888106417,0.1893346,95046.0,95045.0,0.0087626]
[1745888106716,0.1893645,95031.0,95030.0,0.0508]
[1745888106903,0.1893685,95029.0,95028.0,0.0473]
[1745888107108,0.5501685,95029.0,95028.0,0.0473]
[1745888107607,0.6471685,95029.0,95028.0,0.10296077]
[1745888108217,0.6471685,95029.0,95028.0,0.22296077]
[1745888108516,0.6471685,95029.0,95028.0,0.22796077]
[1745888109820,0.6471685,95029.0,95028.0,0.23196077]
[1745888110117,0.65782829,95029.0,95028.0,0.23196077]
[1745888110516,0.37145979,95029.0,95028.0,0.55133127]
[1745888110721,0.3608,95029.0,95028.0,0.65656326]
[1745888110915,0.3608,95029.0,95028.0,1.43272326]
[1745888111119,0.3608,95044.0,95043.0,0.1893406]
[1745888111315,0.05630649,95050.0,95049.0,0.1893286]
[1745888111510,0.3608,95066.0,95054.0,0.0473293]
[1745888111710,0.34999979,95058.0,95057.0,0.1893127]
[1745888111921,0.34999979,95058.0,95057.0,0.3393127]
[1745888112122,0.34999979,95058.0,95057.0,0.5645127]
[1745888112507,0.189312,95058.0,95057.0,0.5645127]
[1745888113006,0.190312,95058.0,95057.0,0.5645127]
[1745888113607,0.192312,95058.0,95057.0,0.5645127]
[1745888115219,0.192312,95058.0,95057.0,0.6635127]
[1745888118016,0.192312,95058.0,95057.0,0.5583127]
[1745888123527,0.003,95058.0,95057.0,0.5583127]
[1745888123921,0.1923107,95058.0,95057.0,0.5583127]
[1745888125224,0.003,95058.0,95057.0,0.5583127]
[1745888125636,0.001,95058.0,95057.0,0.5593127]
[1745888125932,0.1893058,95061.0,95060.0,0.1893067]
[1745888126134,0.1893058,95061.0,95060.0,0.22569359]
[1745888126522,0.1893058,95061.0,95060.0,0.24180104]
[1745888127038,0.3608,95078.0,95075.0,0.1892768]
[1745888127233,0.4081178,95078.0,95075.0,0.20566369]
[1745888127538,0.1902748,95076.0,95075.0,0.22177114]
[1745888127830,0.1902748,95076.0,95075.0,0.32167114]
[1745888128241,0.1902748,95076.0,95075.0,0.44167114]
[1745888129335,0.1952748,95076.0,95075.0,0.44167114]
[1745888129633,0.1952748,95076.0,95075.0,0.44132935]
[1745888132142,0.1922748,95076.0,95075.0,0.44132935]
[1745888132440,0.1902748,95076.0,95075.0,0.44132935]
[1745888132936,0.1902748,95076.0,95075.0,0.42528425]
[1745888135439,0.1902748,95076.0,95075.0,0.4091768]
[1745888142131,0.1902748,95076.0,95075.0,0.42477126]
[1745888142735,0.001,95076.0,95075.0,0.57082018]
[1745888144149,0.001,95076.0,95075.0,0.55522572]
[1745888146248,0.1902748,95076.0,95075.0,0.55522572]
[1745888146546,0.2831748,95076.0,95075.0,0.55522572]
[1745888148150,0.2831748,95076.0,95075.0,0.5391768]
[1745888153654,0.2831748,95076.0,95075.0,0.55504761]
[1745888155855,0.2831748,95076.0,95075.0,0.31507081]
[1745888156054,0.2831748,95076.0,95075.0,0.50434761]
[1745888156356,0.2831748,95076.0,95075.0,0.25]
[1745888156552,0.2831748,95076.0,95075.0,0.4392768]
[1745888157158,0.2831748,95076.0,95075.0,0.3192768]
[1745888158354,0.2831748,95076.0,95075.0,0.13]
[1745888158559,0.1892868,95070.0,95069.0,0.16017971]
[1745888158753,0.1892868,95070.0,95069.0,0.34946851]
[1745888159145,0.2873868,95070.0,95069.0,0.46946851]
[1745888160156,0.2873868,95070.0,95069.0,0.3092888]
[1745888160854,0.2873868,95070.0,95069.0,0.3102888]
[1745888161360,0.2873868,95070.0,95069.0,0.3092888]
[1745888167755,0.6481868,95070.0,95069.0,0.3092888]
[1745888173061,0.047,95076.0,95075.0,0.1892768]
[1745888173252,0.001,95076.0,95075.0,0.3292768]
[1745888173454,0.0015,95080.0,95079.0,0.1892689]
[1745888173654,0.0015,95080.0,95079.0,0.6900689]
[1745888174268,0.3608,95097.0,95087.0,0.1892529]
[1745888174469,0.0469,95093.0,95087.0,0.3192529]
[1745888175172,0.0469,95093.0,95087.0,0.4392529]
[1745888175365,0.29629806,95088.0,95087.0,0.3092529]
[1745888175553,0.29629806,95088.0,95087.0,0.31719056]
[1745888175754,0.1892519,95088.0,95087.0,0.31719056]
[1745888175954,0.1892519,95088.0,95087.0,0.44719056]
[1745888177769,0.1892519,95088.0,95087.0,0.4627999]
[1745888178064,0.1892519,95088.0,95087.0,0.3327999]
[1745888179568,0.1892519,95088.0,95087.0,0.31719056]
[1745888180069,0.1892519,95088.0,95087.0,0.12793766]
[1745888180269,0.5970519,95088.0,95087.0,0.12793766]
[1745888180688,0.5970519,95088.0,95087.0,0.04883766]
[1745888181179,0.7170519,95088.0,95087.0,0.00793766]
[1745888181386,0.1892729,95077.0,95076.0,0.16017971]
[1745888181585,0.5500729,95077.0,95076.0,0.16017971]
[1745888181780,0.5500729,95077.0,95076.0,0.17579763]
[1745888182190,0.6496729,95077.0,95076.0,0.17579763]
[1745888183288,0.6496729,95077.0,95076.0,0.01561792]
[1745888183489,0.6496729,95077.0,95076.0,0.02328768]
[1745888183686,0.6496729,95077.0,95076.0,0.00775154]
[1745888183883,0.1892768,95075.0,95074.0,0.1892788]
[1745888185675,0.1892768,95075.0,95074.0,0.2409788]
[1745888187158,0.1892768,95075.0,95074.0,0.3609788]
[1745888188168,0.1892768,95075.0,95074.0,0.2487219]
[1745888192080,0.1892768,95075.0,95074.0,0.3687219]
[1745888200181,0.2888768,95075.0,95074.0,0.3687219]
[1745888203180,0.2888768,95075.0,95074.0,0.2487219]
[1745888204078,0.2888768,95075.0,95074.0,0.3687219]
[1745888204484,0.2888768,95075.0,95074.0,0.1277431]
[1745888205076,0.2888768,95075.0,95074.0,0.0077431]
[1745888205276,0.1892848,95071.0,95070.0,0.0492]
[1745888205475,0.1892967,95065.0,95064.0,0.1892982]
[1745888205685,0.1892967,95065.0,95064.0,0.2792982]
[1745888206084,0.1892967,95065.0,95064.0,0.3992982]
[1745888206987,0.1892967,95065.0,95064.0,0.4476982]
[1745888208188,0.1892967,95065.0,95064.0,0.45552777]
[1745888211491,0.0473209,95072.0,95066.0,0.0473233]
[1745888211711,0.1892908,95072.0,95071.0,0.1892828]
[1745888211995,0.4131,95080.0,95079.0,0.1892689]
[1745888212185,0.4131,95080.0,95079.0,0.34000116]
[1745888212381,0.10704616,95086.0,95085.0,0.1892569]
[1745888212583,0.10704616,95086.0,95085.0,0.3192569]
[1745888213080,0.10704616,95086.0,95085.0,0.4392569]
[1745888213285,0.10704616,95086.0,95085.0,0.5438569]
[1745888214581,0.1892372,95095.0,95094.0,0.189239]
[1745888214894,0.1892372,95095.0,95094.0,0.329239]
[1745888215100,0.1892372,95095.0,95094.0,0.449239]
[1745888215284,0.1892372,95095.0,95094.0,0.309239]
[1745888215593,0.1892372,95095.0,95094.0,0.409939]
[1745888218697,0.5500372,95095.0,95094.0,0.1702]
[1745888219497,0.6518372,95095.0,95094.0,0.1702]
[1745888220093,0.6518372,95095.0,95094.0,0.12]
[1745888221093,0.189251,95089.0,95088.0,0.0473124]
[1745888221287,0.189251,95089.0,95088.0,0.1095124]
[1745888221483,0.287151,95089.0,95088.0,0.1095124]
[1745888222083,0.287151,95089.0,95088.0,0.2295124]
[1745888222805,0.287151,95089.0,95088.0,0.4187634]
[1745888223299,0.238851,95089.0,95088.0,0.4187634]
[1745888225200,0.4081095,95095.0,95088.0,0.4187634]
[1745888225201,0.1892433,95095.0,95094.0,0.189239]
[1745888225395,0.1892433,95095.0,95094.0,0.329239]
[1745888225698,0.0513,95103.0,95099.0,0.1892291]
[1745888225699,0.0473053,95103.0,95099.0,0.1892291]
[1745888225901,0.1892242,95102.0,95099.0,0.3292291]
[1745888226096,0.1892242,95102.0,95099.0,0.4492291]
[1745888226493,0.1892259,95101.0,95099.0,0.5469291]
[1745888227286,0.0473053,95103.0,95099.0,0.5469291]
[1745888227700,0.1892258,95101.0,95099.0,0.5469291]
[1745888228093,0.1892047,95112.0,95111.0,0.2365021]
[1745888228288,0.1892047,95112.0,95111.0,0.3765021]
[1745888228693,0.1892047,95112.0,95111.0,0.3882021]
[1745888229109,0.1892047,95112.0,95111.0,0.5082021]
[1745888240409,0.1892047,95112.0,95111.0,0.4609012]
[1745888240607,0.1892047,95112.0,95111.0,0.3585012]
[1745888240998,0.2376047,95112.0,95111.0,0.3585012]
[1745888242711,0.2376047,95112.0,95111.0,0.12]
[1745888243208,0.2838679,95094.0,95093.0,0.1892296]
[1745888243412,0.2838679,95094.0,95093.0,0.2092296]
[1745888243799,0.3812679,95094.0,95093.0,0.2092296]
[1745888244109,0.189247,95091.0,95090.0,0.189245]
[1745888244514,0.286647,95091.0,95090.0,0.189245]
[1745888245203,0.286647,95091.0,95090.0,0.309245]
[1745888247610,0.286647,95091.0,95090.0,0.12]
[1745888248317,0.0473131,95088.0,95080.0,0.00157756]
[1745888248612,0.5500649,95081.0,95080.0,0.20084446]
[1745888249207,0.5500649,95081.0,95080.0,0.36724446]
[1745888249413,0.6468649,95081.0,95080.0,0.36724446]
[1745888259711,0.6468649,95081.0,95080.0,0.16797756]
[1745888259916,0.6468649,95081.0,95080.0,0.31084446]
[1745888260109,0.6468649,95081.0,95080.0,0.19084446]
[1745888260915,0.6468649,95081.0,95080.0,0.1892669]
[1745888261419,0.0514,95087.0,95084.0,0.0473143]
[1745888261724,0.1892459,95093.0,95092.0,0.189239]
[1745888261909,0.1892459,95093.0,95092.0,0.329239]
[1745888262117,0.1892459,95093.0,95092.0,0.449239]
[1745888262612,0.1892459,95093.0,95092.0,0.544139]
[1745888263015,0.5973473,95095.0,95094.0,0.189239]
[1745888263620,0.550038,95095.0,95094.0,0.189239]
[1745888264121,0.550038,95095.0,95094.0,0.309239]
[1745888269824,0.550038,95095.0,95094.0,0.309239]
[1745888273626,0.550038,95095.0,95094.0,0.12]
[1745888274226,0.550038,95095.0,95090.0,0.1892453]
[1745888274227,0.189245,95091.0,95090.0,0.1892453]
[1745888275123,0.287345,95091.0,95090.0,0.3092453]
[1745888276133,0.287345,95091.0,95090.0,0.1892453]
[1745888276332,0.287345,95091.0,95090.0,0.2377453]
[1745888279235,0.287345,95091.0,95090.0,0.3577453]
[1745888280931,0.550041,95095.0,95094.0,0.189239]
[1745888281234,0.08004235,95100.0,95099.0,0.1892291]
[1745888281432,0.08004235,95100.0,95099.0,0.3192291]
[1745888282026,0.08004235,95100.0,95099.0,0.4171291]
[1745888282326,0.08004235,95100.0,95099.0,0.5371291]
[1745888284530,0.26926945,95100.0,95099.0,0.5371291]
[1745888285131,0.1892271,95100.0,95099.0,0.5371291]
[1745888285728,0.235924,95105.0,95104.0,0.1892191]
[1745888286230,0.235924,95105.0,95104.0,0.3092191]
[1745888286631,0.235924,95105.0,95104.0,0.4032191]
[1745888287935,0.285924,95105.0,95104.0,0.4032191]
[1745888290431,0.285924,95105.0,95104.0,0.3557191]
[1745888296748,0.285924,95105.0,95104.0,0.1665]
[1745888296945,0.285924,95105.0,95104.0,0.12]
[1745888297246,0.1892231,95102.0,95101.0,0.2391243]
[1745888298148,0.1892231,95102.0,95101.0,0.3591243]
[1745888302133,0.1892231,95102.0,95101.0,0.2391243]
[1745888303236,0.0467,95105.0,95104.0,0.1892191]
[1745888303445,0.0467,95105.0,95104.0,0.3392191]
[1745888303753,0.3608,95107.0,95106.0,0.1892151]
[1745888304051,0.3608,95107.0,95106.0,0.3292151]
[1745888304533,0.3608,95107.0,95106.0,0.4200151]
[1745888305335,0.3608,95107.0,95106.0,0.5400151]
[1745888307635,0.5500132,95107.0,95106.0,0.5400151]
[1745888307839,0.3608,95107.0,95106.0,0.5400151]
[1745888308850,0.4057,95107.0,95106.0,0.5400151]
[1745888310154,0.5949132,95107.0,95106.0,0.5400151]
[1745888310451,0.6431132,95107.0,95106.0,0.4954151]
[1745888311039,0.6431132,95107.0,95106.0,0.12]
[1745888311254,0.1892191,95104.0,95103.0,0.0473048]
[1745888312852,0.1892191,95104.0,95103.0,0.2365199]
[1745888314249,0.19978733,95104.0,95103.0,0.2365199]
[1745888314443,0.01056823,95104.0,95090.0,0.0473116]
[1745888314642,0.189245,95091.0,95090.0,0.12]
[1745888314843,0.189247,95090.0,95089.0,0.2369483]
[1745888315045,0.237147,95090.0,95089.0,0.2369483]
[1745888319252,0.237147,95090.0,95089.0,0.3569483]
[1745888320150,0.237147,95090.0,95089.0,0.2369483]
[1745888321143,0.237147,95090.0,95089.0,0.3569483]
[1745888322653,0.237147,95090.0,95089.0,0.1677]
[1745888323044,0.237147,95090.0,95089.0,0.12]
[1745888323244,0.1892589,95085.0,95084.0,0.1892577]
[1745888323450,0.5500589,95085.0,95084.0,0.1892577]
[1745888323755,0.6436589,95085.0,95084.0,0.1892577]
[1745888328050,0.1892589,95084.0,95083.0,0.0482]
[1745888328455,0.2836589,95084.0,95083.0,0.0482]
[1745888330058,0.2836589,95084.0,95064.0,0.00782957]
[1745888330059,0.1892748,95076.0,95064.0,0.00782957]
[1745888330259,0.5500748,95076.0,95065.0,0.094]
[1745888330559,0.5500748,95076.0,95065.0,0.0451]
[1745888330956,0.6453748,95076.0,95065.0,0.0451]
[1745888331163,0.1892948,95066.0,95065.0,0.0451]
[1745888331467,0.5500948,95066.0,95065.0,0.0451]
[1745888332053,0.6417948,95066.0,95065.0,0.0451]
[1745888332756,0.6417948,95066.0,95065.0,0.0927]
[1745888332962,0.6417948,95066.0,95065.0,0.1388]
[1745888333355,0.6417948,95066.0,95065.0,0.1488]
[1745888333757,0.6417948,95066.0,95065.0,0.3380967]
[1745888333958,0.5966948,95066.0,95065.0,0.3380967]
[1745888334157,0.5966948,95066.0,95065.0,0.4580967]
[1745888336557,0.5500948,95066.0,95065.0,0.4580967]
[1745888337853,0.5500948,95066.0,95065.0,0.4480967]
[1745888341263,0.5500948,95066.0,95065.0,0.4580967]
[1745888342056,0.1892908,95068.0,95067.0,0.1892908]
[1745888342261,0.06704,95069.0,95068.0,0.1892908]
[1745888342568,0.23661,95071.0,95070.0,0.1892848]
[1745888342769,0.23661,95071.0,95070.0,0.4276848]
[1745888343063,0.23661,95071.0,95070.0,0.5476848]
[1745888344367,0.0473182,95077.0,95076.0,0.1892729]
[1745888344560,0.0473182,95077.0,95076.0,0.3292729]
[1745888344756,0.2365911,95077.0,95076.0,0.3292729]
[1745888345169,0.2365911,95077.0,95076.0,0.4492729]
[1745888346666,0.3608,95078.0,95077.0,0.1892729]
[1745888347257,0.3608,95078.0,95077.0,0.3092729]
[1745888348868,0.2370689,95079.0,95078.0,0.1892709]
[1745888349058,0.2370689,95079.0,95078.0,0.3092709]
[1745888349968,0.0478,95079.0,95078.0,0.3092709]
[1745888350169,0.2370689,95079.0,95078.0,0.3092709]
[1745888352364,0.2370689,95079.0,95078.0,0.3192709]
[1745888352759,0.0478,95079.0,95078.0,0.3192709]
[1745888353961,0.2370689,95079.0,95078.0,0.3192709]
[1745888355969,0.0478,95079.0,95078.0,0.3192709]
[1745888357167,0.2370689,95079.0,95078.0,0.3192709]
[1745888357761,0.0478,95079.0,95078.0,0.3192709]
[1745888358669,0.2370689,95079.0,95078.0,0.3192709]
[1745888360267,0.0484,95082.0,95081.0,0.1892649]
[1745888360573,0.4088,95088.0,95087.0,0.1892529]
[1745888360574,0.42784,95088.0,95087.0,0.1892529]
[1745888360872,0.42784,95088.0,95087.0,0.3392529]
[1745888361074,0.42784,95088.0,95087.0,0.4592529]
[1745888362562,0.06704,95088.0,95087.0,0.4592529]
[1745888363679,0.06704,95088.0,95087.0,0.5056529]
[1745888364271,0.06704,95088.0,95087.0,0.5555529]
[1745888376184,0.048,95089.0,95088.0,0.189251]
[1745888376481,0.048,95089.0,95088.0,0.434951]
[1745888377189,0.048,95089.0,95088.0,0.554951]
[1745888378891,0.237249,95089.0,95088.0,0.554951]
[1745888382492,0.048,95089.0,95088.0,0.554951]
[1745888384193,0.237249,95089.0,95088.0,0.554951]
[1745888385789,0.048,95089.0,95088.0,0.554951]
[1745888390100,0.26947703,95103.0,95102.0,0.1892231]
[1745888390298,0.08025343,95103.0,95102.0,0.3092231]
[1745888391506,0.26947453,95103.0,95102.0,0.4767231]
[1745888391816,0.2358211,95103.0,95102.0,0.4767231]
[1745888393408,0.0466,95103.0,95102.0,0.4767231]
[1745888393810,0.0466,95103.0,95102.0,0.5267231]
[1745888394211,0.2358211,95103.0,95102.0,0.5267231]
[1745888396508,0.2358211,95103.0,95102.0,0.4767231]
[1745888396810,0.5966211,95103.0,95102.0,0.12]
[1745888397199,0.2365527,95097.0,95096.0,0.1892231]
[1745888397704,0.3825527,95097.0,95096.0,0.1892231]
[1745888398215,0.3825527,95097.0,95096.0,0.3092231]
[1745888398406,0.7433527,95097.0,95096.0,0.3092231]
[1745888400508,0.7433527,95097.0,95096.0,0.12]
[1745888400712,0.8485087,95097.0,95096.0,0.12]
[1745888401312,0.189245,95091.0,95090.0,0.1892463]
[1745888401616,0.255605,95091.0,95090.0,0.1892463]
[1745888402118,0.375605,95091.0,95090.0,0.1892463]
[1745888402412,0.470105,95091.0,95090.0,0.1892463]
[1745888403510,0.1892609,95083.0,95082.0,0.34943991]
[1745888403712,0.5500609,95083.0,95082.0,0.1892602]
[1745888404412,0.2366067,95078.0,95077.0,0.0473179]
[1745888404909,0.1892848,95072.0,95071.0,0.1892735]
[1745888405099,0.1892848,95072.0,95071.0,0.3592735]
[1745888405301,0.3338848,95072.0,95071.0,0.3592735]
[1745888407113,0.3338848,95072.0,95071.0,0.17]
[1745888408111,0.3338848,95072.0,95071.0,0.05]
[1745888408805,0.3338848,95072.0,95071.0,0.2392848]
[1745888409912,0.2841848,95072.0,95071.0,0.2392848]
[1745888410116,0.5500808,95073.0,95072.0,0.1892828]
[1745888410310,0.5500808,95073.0,95072.0,0.4497828]
[1745888411218,0.5500808,95073.0,95072.0,0.5697828]
[1745888414808,0.6452808,95073.0,95072.0,0.5697828]
[1745888415211,0.6452808,95073.0,95072.0,0.4497828]
[1745888416321,0.6452808,95073.0,95072.0,0.5697828]
[1745888416816,0.6452808,95073.0,95072.0,0.3805]
[1745888417219,0.6452808,95073.0,95072.0,0.2103]
[1745888418519,0.6452808,95073.0,95072.0,0.3995828]
[1745888418721,0.5963808,95073.0,95072.0,0.3995828]
[1745888420124,0.2355808,95073.0,95072.0,0.3995828]
[1745888420821,0.1892705,95079.0,95078.0,0.1892689]
[1745888421030,0.1892705,95079.0,95078.0,0.3192689]
[1745888421222,0.42716,95094.0,95086.0,0.0473134]
[1745888421521,0.42716,95094.0,95093.0,0.189241]
[1745888421717,0.616399,95094.0,95093.0,0.349241]
[1745888421916,0.550039,95094.0,95093.0,0.349241]
[1745888422118,0.550039,95094.0,95093.0,0.469241]
[1745888422320,0.550039,95094.0,95093.0,0.566541]
[1745888425829,0.550039,95094.0,95093.0,0.3299]
[1745888426029,0.550039,95094.0,95093.0,0.28]
[1745888426328,0.550039,95094.0,95070.0,0.21364093]
[1745888426329,0.1892748,95076.0,95070.0,0.21364093]
[1745888426528,0.5500748,95076.0,95070.0,0.21364093]
[1745888426822,0.56037193,95076.0,95070.0,0.21364093]
[1745888427022,0.65577193,95076.0,95070.0,0.21364093]
[1745888427226,0.77577193,95076.0,95070.0,0.21364093]
[1745888427622,0.77577193,95076.0,95071.0,0.0461]
[1745888428219,0.65577193,95076.0,95071.0,0.0461]
[1745888428425,0.6454748,95076.0,95071.0,0.0461]
[1745888428626,0.6454748,95076.0,95072.0,0.0472]
[1745888429221,0.1892808,95073.0,95072.0,0.0472]
[1745888429825,0.1892808,95073.0,95072.0,0.2364828]
[1745888431118,0.1892808,95073.0,95066.0,0.0473236]
[1745888431119,0.0473216,95071.0,95066.0,0.0473236]
[1745888431419,0.1892928,95068.0,95067.0,0.1892928]
[1745888431623,0.5500928,95068.0,95067.0,0.1892928]
[1745888431826,0.6452928,95068.0,95067.0,0.1892928]
[1745888432028,0.6452928,95068.0,95067.0,0.2378928]
[1745888433140,0.6452928,95068.0,95067.0,0.3578928]
[1745888434833,0.2844928,95068.0,95067.0,0.3578928]
[1745888435038,0.5986928,95068.0,95067.0,0.4778928]
[1745888435240,0.2366074,95073.0,95072.0,0.1892828]
[1745888435530,0.1892869,95073.0,95072.0,0.3192828]
[1745888436132,0.1892869,95073.0,95072.0,0.4881828]
[1745888437437,0.1892869,95073.0,95072.0,0.25]
[1745888438027,0.2391869,95073.0,95072.0,0.25]
[1745888438226,0.2391869,95073.0,95072.0,0.13]
[1745888438836,0.2391869,95073.0,95072.0,0.3192828]
[1745888439039,0.2843869,95073.0,95072.0,0.3192828]
[1745888440134,0.0473195,95075.0,95072.0,0.3192828]
[1745888440135,0.1892779,95075.0,95074.0,0.1892768]
[1745888440434,0.1892779,95075.0,95074.0,0.3292768]
[1745888440826,0.1892779,95075.0,95074.0,0.3790768]
[1745888441228,0.1892779,95075.0,95074.0,0.4990768]
[1745888441431,0.2377779,95075.0,95074.0,0.4990768]
[1745888442027,0.06636,95078.0,95077.0,0.1892729]
[1745888442242,0.06636,95078.0,95077.0,0.4492729]
[1745888442243,0.2556309,95078.0,95077.0,0.4492729]
[1745888442929,0.2556309,95078.0,95077.0,0.4966729]
[1745888444233,0.2556309,95078.0,95077.0,0.5439729]
[1745888453939,0.2556309,95078.0,95077.0,0.26]
[1745888454142,0.1892768,95075.0,95074.0,0.239278]
[1745888454441,0.1892768,95075.0,95074.0,0.189278]
[1745888457234,0.1892828,95072.0,95071.0,0.1892847]
[1745888457433,0.1892908,95068.0,95067.0,0.2372922]
[1745888457633,0.1892948,95066.0,95065.0,0.1892959]
[1745888457944,0.1892948,95066.0,95065.0,0.2472959]
[1745888458442,0.2861948,95066.0,95065.0,0.2472959]
[1745888460050,0.2861948,95066.0,95065.0,0.058]
[1745888462239,0.2861948,95066.0,95065.0,0.01]
[1745888462547,0.1893226,95052.0,95051.0,0.16017971]
[1745888462851,0.1893346,95046.0,95045.0,0.21469306]
[1745888463350,0.19988577,95046.0,95045.0,0.21469306]
[1745888463742,0.29658577,95046.0,95045.0,0.21469306]
[1745888464345,0.29658577,95046.0,95045.0,0.22249693]
[1745888466148,0.29658577,95046.0,95045.0,0.008856]
[1745888466450,0.1893625,95032.0,95009.0,0.26099273]
[1745888466747,0.5501625,95032.0,95031.0,0.08157838]
[1745888467338,0.6474625,95032.0,95031.0,0.08157838]
[1745888467754,0.6474625,95032.0,95031.0,0.08949038]
[1745888469043,0.6474625,95032.0,95031.0,0.2772765]
[1745888469550,0.7145025,95032.0,95031.0,0.2772765]
[1745888469953,0.7145025,95032.0,95031.0,0.087912]
[1745888470147,0.7145025,95032.0,95031.0,0.207912]
[1745888470650,0.0473448,95024.0,95016.0,0.0468]
[1745888470950,0.5501904,95018.0,95017.0,0.0487]
[1745888471248,0.5501904,95018.0,95017.0,0.0666956]
[1745888471442,0.5501904,95018.0,95017.0,0.1134956]
[1745888471841,0.6172304,95018.0,95017.0,0.1134956]
[1745888472347,0.6172304,95018.0,95017.0,0.2334956]